[Event "Titled Tuesday Blitz March 08 Early 2022"]
[White "Krysa, Leandro"]
[Black "Mikhnenko, Alexander"]
[WhiteFideId "116807"]
[BlackFideId "34143014"]
[WhiteElo "2490"]
[BlackElo "2184"]
[Result "1-0"]
[Round "03"]
[TimeControl "180+1"]
[Date "2022.03.09"]
[WhiteClock "0:00:05"]
[BlackClock "0:00:07"]

1. e4 {[%clk 0:03:00]}  c5 {[%clk 0:02:59]} 2. Nf3 {[%clk 0:03:00]}  e6 {[%clk 0:02:59]} 3. d4 {[%clk 0:03:00]}  cxd4 {[%clk 0:02:58]} 4. Nxd4 {[%clk 0:03:01]}  Nf6 {[%clk 0:02:57]} 5. Nc3 {[%clk 0:03:01]}  Nc6 {[%clk 0:02:57]} 6. Qd3 {[%clk 0:02:57]}  Bc5 {[%clk 0:02:53]} 7. Nb3 {[%clk 0:02:33]}  Bb6 {[%clk 0:02:49]} 8. Qg3 {[%clk 0:02:29]}  O-O {[%clk 0:02:17]} 9. Bh6 {[%clk 0:02:24]}  Nh5 {[%clk 0:02:11]} 10. Qf3 {[%clk 0:01:51]}  Qf6 {[%clk 0:02:02]} 11. Qxf6 {[%clk 0:01:49]}  Nxf6 {[%clk 0:02:02]} 12. Bg5 {[%clk 0:01:47]}  Nd4 {[%clk 0:02:01]} 13. Bd3 {[%clk 0:01:33]}  d6 {[%clk 0:01:45]} 14. O-O {[%clk 0:01:28]}  h6 {[%clk 0:01:36]} 15. Bh4 {[%clk 0:01:27]}  Nh5 {[%clk 0:01:28]} 16. Rad1 {[%clk 0:01:13]}  Nxb3 {[%clk 0:01:21]} 17. axb3 {[%clk 0:01:12]}  Bc5 {[%clk 0:01:16]} 18. Na4 {[%clk 0:01:08]}  g5 {[%clk 0:01:14]} 19. Bg3 {[%clk 0:01:00]}  Nxg3 {[%clk 0:01:15]} 20. hxg3 {[%clk 0:01:01]}  Bd7 {[%clk 0:01:11]} 21. Nxc5 {[%clk 0:00:58]}  dxc5 {[%clk 0:01:12]} 22. e5 {[%clk 0:00:55]}  Bc6 {[%clk 0:01:07]} 23. f4 {[%clk 0:00:55]}  f5 {[%clk 0:00:44]} 24. exf6 {[%clk 0:00:53]}  Rxf6 {[%clk 0:00:36]} 25. fxg5 {[%clk 0:00:53]}  Rxf1+ {[%clk 0:00:36]} 26. Rxf1 {[%clk 0:00:54]}  hxg5 {[%clk 0:00:37]} 27. Rf6 {[%clk 0:00:54]}  Re8 {[%clk 0:00:22]} 28. Rg6+ {[%clk 0:00:54]}  Kf7 {[%clk 0:00:22]} 29. Rxg5 {[%clk 0:00:55]}  Rg8 {[%clk 0:00:20]} 30. Rxg8 {[%clk 0:00:48]}  Kxg8 {[%clk 0:00:21]} 31. Be2 {[%clk 0:00:41]}  Kg7 {[%clk 0:00:21]} 32. Bf3 {[%clk 0:00:41]}  Bb5 {[%clk 0:00:10]} 33. Bxb7 {[%clk 0:00:40]}  Be2 {[%clk 0:00:11]} 34. Be4 {[%clk 0:00:38]}  Bd1 {[%clk 0:00:11]} 35. Kf2 {[%clk 0:00:37]}  Kf6 {[%clk 0:00:12]} 36. Ke3 {[%clk 0:00:37]}  Ke5 {[%clk 0:00:12]} 37. Bd3 {[%clk 0:00:35]}  Bg4 {[%clk 0:00:12]} 38. c3 {[%clk 0:00:31]}  a5 {[%clk 0:00:10]} 39. Bc2 {[%clk 0:00:22]}  Bh5 {[%clk 0:00:09]} 40. Kd3 {[%clk 0:00:19]}  Kd5 {[%clk 0:00:09]} 41. Kd2 {[%clk 0:00:16]}  Ke5 {[%clk 0:00:08]} 42. Bd1 {[%clk 0:00:16]}  Bg6 {[%clk 0:00:08]} 43. Bf3 {[%clk 0:00:16]}  Bf5 {[%clk 0:00:07]} 44. g4 {[%clk 0:00:13]}  Bg6 {[%clk 0:00:07]} 45. Bd1 {[%clk 0:00:10]}  Kf4 {[%clk 0:00:07]} 46. Bc2 {[%clk 0:00:09]}  Be8 {[%clk 0:00:07]} 47. g5 {[%clk 0:00:05]}  Kxg5 {[%clk 0:00:04]} 48. Ke3 {[%clk 0:00:06]}  e5 {[%clk 0:00:04]} 49. Be4 {[%clk 0:00:04]}  Bf7 {[%clk 0:00:04]} 50. c4 {[%clk 0:00:04]}  Bh5 {[%clk 0:00:03]} 51. Bf3 {[%clk 0:00:04]}  Bg6 {[%clk 0:00:03]} 52. g3 {[%clk 0:00:04]}  Kf6 {[%clk 0:00:03]} 53. Be4 {[%clk 0:00:03]}  Bh5 {[%clk 0:00:04]} 54. Bc2 {[%clk 0:00:03]}  Kg5 {[%clk 0:00:02]} 55. Bd3 {[%clk 0:00:04]}  Kf6 {[%clk 0:00:02]} 56. Ke4 {[%clk 0:00:04]}  Bg6+ {[%clk 0:00:02]} 57. Ke3 {[%clk 0:00:04]}  Bh5 {[%clk 0:00:03]} 58. Be2 {[%clk 0:00:04]}  Bf7 {[%clk 0:00:03]} 59. Bd1 {[%clk 0:00:04]}  Bg6 {[%clk 0:00:04]} 60. Be2 {[%clk 0:00:04]}  Bc2 {[%clk 0:00:04]} 61. Bd3 {[%clk 0:00:02]}  Bxb3 {[%clk 0:00:04]} 62. Ke4 {[%clk 0:00:02]}  Ke6 {[%clk 0:00:04]} 63. g4 {[%clk 0:00:03]}  a4 {[%clk 0:00:05]} 64. g5 {[%clk 0:00:03]}  Bd1 {[%clk 0:00:06]} 65. g6 {[%clk 0:00:03]}  Kf6 {[%clk 0:00:06]} 66. g7 {[%clk 0:00:03]}  Kxg7 {[%clk 0:00:07]} 67. Kxe5 {[%clk 0:00:03]}  Kf7 {[%clk 0:00:07]} 68. Kd6 {[%clk 0:00:03]}  Ke8 {[%clk 0:00:06]} 69. Kxc5 {[%clk 0:00:04]}  Kd8 {[%clk 0:00:07]} 70. Kb4 {[%clk 0:00:04]}  Kc7 {[%clk 0:00:08]} 71. c5 {[%clk 0:00:04]}  Kc6 {[%clk 0:00:08]} 72. Bg6 {[%clk 0:00:04]}  Bb3 {[%clk 0:00:07]} 73. Be8+ {[%clk 0:00:03]}  Kc7 {[%clk 0:00:07]} 74. Bxa4 {[%clk 0:00:04]}  Be6 {[%clk 0:00:07]} 75. Ka5 {[%clk 0:00:04]}  Bd5 {[%clk 0:00:07]} 76. b4 {[%clk 0:00:05]}  Bc4 {[%clk 0:00:07]} 77. b5 {[%clk 0:00:05]}  Bxb5 {[%clk 0:00:07]} 78. Kxb5 {[%clk 0:00:05]} 1-0


[Site "https://www.chess.com"]

[Event "Titled Tuesday Blitz March 08 Early 2022"]
[White "Kushko, Dmitriy"]
[Black "Van Foreest, Jorden"]
[WhiteFideId "14162261"]
[BlackFideId "1039784"]
[WhiteElo "2521"]
[BlackElo "2951"]
[Result "0-1"]
[Round "03"]
[TimeControl "180+1"]
[Date "2022.03.09"]
[WhiteClock "0:00:03"]
[BlackClock "0:01:40"]

1. Nf3 {[%clk 0:03:00]}  c6 {[%clk 0:02:59]} 2. g3 {[%clk 0:03:00]}  d5 {[%clk 0:03:00]} 3. Bg2 {[%clk 0:03:01]}  g6 {[%clk 0:03:01]} 4. O-O {[%clk 0:02:57]}  Bg7 {[%clk 0:03:02]} 5. d3 {[%clk 0:02:56]}  Nf6 {[%clk 0:03:02]} 6. Nbd2 {[%clk 0:02:55]}  Bg4 {[%clk 0:03:00]} 7. h3 {[%clk 0:02:54]}  Bxf3 {[%clk 0:03:00]} 8. Nxf3 {[%clk 0:02:51]}  O-O {[%clk 0:03:01]} 9. Qe1 {[%clk 0:02:49]}  e6 {[%clk 0:03:00]} 10. e4 {[%clk 0:02:49]}  a5 {[%clk 0:03:01]} 11. a4 {[%clk 0:02:33]}  Nbd7 {[%clk 0:03:01]} 12. Qe2 {[%clk 0:02:23]}  Qb6 {[%clk 0:02:58]} 13. Kh2 {[%clk 0:02:17]}  Qa6 {[%clk 0:02:52]} 14. e5 {[%clk 0:02:07]}  Ne8 {[%clk 0:02:51]} 15. h4 {[%clk 0:02:07]}  h5 {[%clk 0:02:46]} 16. Bf4 {[%clk 0:02:05]}  Nc7 {[%clk 0:02:43]} 17. Ng5 {[%clk 0:01:44]}  Rae8 {[%clk 0:02:41]} 18. Rae1 {[%clk 0:01:39]}  b5 {[%clk 0:02:40]} 19. axb5 {[%clk 0:01:34]}  Qxb5 {[%clk 0:02:41]} 20. b3 {[%clk 0:01:33]}  a4 {[%clk 0:02:36]} 21. bxa4 {[%clk 0:01:31]}  Qxa4 {[%clk 0:02:35]} 22. Nf3 {[%clk 0:01:24]}  Rb8 {[%clk 0:02:26]} 23. Ra1 {[%clk 0:01:20]}  Qb4 {[%clk 0:02:27]} 24. Ra7 {[%clk 0:01:05]}  Qb6 {[%clk 0:02:26]} 25. Rfa1 {[%clk 0:01:01]}  Rb7 {[%clk 0:02:22]} 26. Rxb7 {[%clk 0:00:54]}  Qxb7 {[%clk 0:02:23]} 27. Re1 {[%clk 0:00:24]}  Ra8 {[%clk 0:02:22]} 28. Ng5 {[%clk 0:00:17]}  Ra2 {[%clk 0:02:20]} 29. g4 {[%clk 0:00:13]}  hxg4 {[%clk 0:02:19]} 30. Qxg4 {[%clk 0:00:13]}  Qb4 {[%clk 0:01:57]} 31. Nf3 {[%clk 0:00:12]}  Ra4 {[%clk 0:01:50]} 32. Kg3 {[%clk 0:00:11]}  Nb5 {[%clk 0:01:42]} 33. Re3 {[%clk 0:00:07]}  Nd4 {[%clk 0:01:39]} 34. Nxd4 {[%clk 0:00:07]}  Qxd4 {[%clk 0:01:40]} 35. h5 {[%clk 0:00:05]}  Nxe5 {[%clk 0:01:40]} 36. Qg5 {[%clk 0:00:04]}  f6 {[%clk 0:01:41]} 37. Qh4 {[%clk 0:00:03]}  g5 {[%clk 0:01:41]} 38. Bxg5 {[%clk 0:00:03]}  fxg5 {[%clk 0:01:40]} 0-1


[Site "https://www.chess.com"]

[Event "Titled Tuesday Blitz March 08 Early 2022"]
[White "Kuzmin, Roman"]
[Black "Osmonbekov, Talaibek"]
[WhiteFideId "44134932"]
[BlackFideId "2017253"]
[WhiteElo "1978"]
[BlackElo "2135"]
[Result "0-1"]
[Round "03"]
[TimeControl "180+1"]
[Date "2022.03.09"]
[WhiteClock "0:00:11"]
[BlackClock "0:00:13"]

1. e4 {[%clk 0:01:00]}  c5 {[%clk 0:02:58]} 2. Nf3 {[%clk 0:01:01]}  d6 {[%clk 0:02:58]} 3. d4 {[%clk 0:01:01]}  cxd4 {[%clk 0:02:59]} 4. Nxd4 {[%clk 0:01:02]}  Nf6 {[%clk 0:02:59]} 5. Nc3 {[%clk 0:01:03]}  g6 {[%clk 0:03:00]} 6. Be3 {[%clk 0:01:02]}  Bg7 {[%clk 0:03:00]} 7. f3 {[%clk 0:01:02]}  O-O {[%clk 0:03:00]} 8. Qd2 {[%clk 0:01:03]}  Nc6 {[%clk 0:03:00]} 9. O-O-O {[%clk 0:01:03]}  d5 {[%clk 0:03:01]} 10. exd5 {[%clk 0:01:02]}  Nxd5 {[%clk 0:03:02]} 11. Nxc6 {[%clk 0:01:02]}  bxc6 {[%clk 0:03:02]} 12. Bd4 {[%clk 0:01:03]}  e5 {[%clk 0:03:00]} 13. Bc5 {[%clk 0:01:03]}  Re8 {[%clk 0:03:01]} 14. Ne4 {[%clk 0:01:01]}  Qc7 {[%clk 0:02:57]} 15. Bc4 {[%clk 0:00:48]}  Rd8 {[%clk 0:02:48]} 16. h4 {[%clk 0:00:38]}  h6 {[%clk 0:02:29]} 17. g4 {[%clk 0:00:28]}  Be6 {[%clk 0:02:13]} 18. Qe1 {[%clk 0:00:09]}  Rab8 {[%clk 0:02:04]} 19. g5 {[%clk 0:00:08]}  Qb7 {[%clk 0:01:33]} 20. Ba3 {[%clk 0:00:03]}  Qb6 {[%clk 0:01:06]} 21. Nf6+ {[%clk 0:00:01]}  Nxf6 {[%clk 0:00:54]} 22. Bxe6 {[%clk 0:00:01]}  Nd5 {[%clk 0:00:45]} 23. Bxd5 {[%clk 0:00:01]}  cxd5 {[%clk 0:00:44]} 24. Qc3 {[%clk 0:00:01]}  Rdc8 {[%clk 0:00:26]} 25. Qb3 {[%clk 0:00:02]}  Qxb3 {[%clk 0:00:26]} 26. axb3 {[%clk 0:00:01]}  Rxb3 {[%clk 0:00:23]} 27. Rxd5 {[%clk 0:00:02]}  Rxf3 {[%clk 0:00:22]} 28. Kb1 {[%clk 0:00:02]}  e4 {[%clk 0:00:19]} 29. gxh6 {[%clk 0:00:03]}  Bxh6 {[%clk 0:00:19]} 30. Re1 {[%clk 0:00:04]}  f5 {[%clk 0:00:18]} 31. Rd7 {[%clk 0:00:04]}  e3 {[%clk 0:00:13]} 32. b3 {[%clk 0:00:05]}  Rf2 {[%clk 0:00:11]} 33. Bc1 {[%clk 0:00:06]}  f4 {[%clk 0:00:08]} 34. c4 {[%clk 0:00:05]}  Rb8 {[%clk 0:00:08]} 35. Rd3 {[%clk 0:00:03]}  a5 {[%clk 0:00:07]} 36. Bb2 {[%clk 0:00:02]}  a4 {[%clk 0:00:06]} 37. Ka2 {[%clk 0:00:03]}  axb3+ {[%clk 0:00:05]} 38. Rxb3 {[%clk 0:00:03]}  Ra8+ {[%clk 0:00:05]} 39. Ra3 {[%clk 0:00:03]}  Rb8 {[%clk 0:00:05]} 40. Rb3 {[%clk 0:00:03]}  Rc8 {[%clk 0:00:05]} 41. Rc3 {[%clk 0:00:03]}  Bg7 {[%clk 0:00:05]} 42. Kb3 {[%clk 0:00:02]}  Rb8+ {[%clk 0:00:03]} 43. Ka3 {[%clk 0:00:02]}  Rbxb2 {[%clk 0:00:04]} 44. Rb3 {[%clk 0:00:02]}  Ra2+ {[%clk 0:00:03]} 45. Kb4 {[%clk 0:00:02]}  Bf8+ {[%clk 0:00:04]} 46. Kb5 {[%clk 0:00:02]}  Rfc2 {[%clk 0:00:04]} 47. Rg1 {[%clk 0:00:01]}  Kf7 {[%clk 0:00:03]} 48. h5 {[%clk 0:00:01]}  gxh5 {[%clk 0:00:02]} 49. Rh1 {[%clk 0:00:02]}  Rab2 {[%clk 0:00:02]} 50. Rxb2 {[%clk 0:00:01]}  Rxb2+ {[%clk 0:00:03]} 51. Kc6 {[%clk 0:00:02]}  Rc2 {[%clk 0:00:03]} 52. Kd5 {[%clk 0:00:02]}  e2 {[%clk 0:00:03]} 53. Rh4 {[%clk 0:00:02]}  Bb4 {[%clk 0:00:04]} 54. Rxf4+ {[%clk 0:00:03]}  Kg6 {[%clk 0:00:04]} 55. Re4 {[%clk 0:00:03]}  e1=Q {[%clk 0:00:04]} 56. Rxe1 {[%clk 0:00:02]}  Bxe1 {[%clk 0:00:05]} 57. c5 {[%clk 0:00:03]}  Bf2 {[%clk 0:00:05]} 58. c6 {[%clk 0:00:04]}  Kg5 {[%clk 0:00:05]} 59. Ke6 {[%clk 0:00:05]}  Rxc6+ {[%clk 0:00:04]} 60. Kd7 {[%clk 0:00:06]}  Rg6 {[%clk 0:00:05]} 61. Ke8 {[%clk 0:00:07]}  h4 {[%clk 0:00:05]} 62. Kf7 {[%clk 0:00:08]}  h3 {[%clk 0:00:06]} 63. Ke8 {[%clk 0:00:07]}  h2 {[%clk 0:00:07]} 64. Kd7 {[%clk 0:00:08]}  h1=Q {[%clk 0:00:08]} 65. Ke7 {[%clk 0:00:09]}  Qe4+ {[%clk 0:00:09]} 66. Kd7 {[%clk 0:00:09]}  Rf6 {[%clk 0:00:09]} 67. Kc8 {[%clk 0:00:10]}  Rf5 {[%clk 0:00:09]} 68. Kc7 {[%clk 0:00:11]}  Rd5 {[%clk 0:00:10]} 69. Kc6 {[%clk 0:00:11]}  Qc4+ {[%clk 0:00:11]} 70. Kb7 {[%clk 0:00:10]}  Rb5+ {[%clk 0:00:12]} 71. Ka6 {[%clk 0:00:11]}  Qa4# {[%clk 0:00:13]} 0-1


[Site "https://www.chess.com"]

[Event "Titled Tuesday Blitz March 08 Early 2022"]
[White "Lashkin, Jegor"]
[Black "Aradhya, Garg"]
[WhiteFideId "13907808"]
[BlackFideId "25006746"]
[WhiteElo "2876"]
[BlackElo "2688"]
[Result "0-1"]
[Round "03"]
[TimeControl "180+1"]
[Date "2022.03.09"]
[WhiteClock "0:00:02"]
[BlackClock "0:00:06"]

1. d4 {[%clk 0:03:00]}  d5 {[%clk 0:02:58]} 2. c4 {[%clk 0:03:01]}  c6 {[%clk 0:02:57]} 3. Nc3 {[%clk 0:03:00]}  Nf6 {[%clk 0:02:57]} 4. e3 {[%clk 0:03:01]}  Nbd7 {[%clk 0:02:57]} 5. cxd5 {[%clk 0:03:00]}  cxd5 {[%clk 0:02:57]} 6. Nf3 {[%clk 0:03:00]}  e6 {[%clk 0:02:57]} 7. Bd3 {[%clk 0:03:00]}  Bd6 {[%clk 0:02:57]} 8. O-O {[%clk 0:02:59]}  O-O {[%clk 0:02:57]} 9. Qb3 {[%clk 0:03:00]}  a6 {[%clk 0:02:57]} 10. a4 {[%clk 0:02:57]}  b6 {[%clk 0:02:57]} 11. Bd2 {[%clk 0:02:56]}  Bb7 {[%clk 0:02:57]} 12. Rfc1 {[%clk 0:02:57]}  Rc8 {[%clk 0:02:57]} 13. Rc2 {[%clk 0:02:47]}  Ne4 {[%clk 0:02:52]} 14. Be1 {[%clk 0:02:42]}  Ndc5 {[%clk 0:02:46]} 15. dxc5 {[%clk 0:02:40]}  Nxc5 {[%clk 0:02:45]} 16. Bxh7+ {[%clk 0:02:33]}  Kxh7 {[%clk 0:02:45]} 17. Qa2 {[%clk 0:02:25]}  Qf6 {[%clk 0:02:33]} 18. Rd1 {[%clk 0:01:57]}  Kg8 {[%clk 0:02:13]} 19. Qb1 {[%clk 0:01:21]}  Rfd8 {[%clk 0:02:08]} 20. b4 {[%clk 0:01:11]}  Ne4 {[%clk 0:02:05]} 21. Rdc1 {[%clk 0:01:09]}  Ng5 {[%clk 0:01:57]} 22. Nxg5 {[%clk 0:01:03]}  Qxg5 {[%clk 0:01:57]} 23. Ne2 {[%clk 0:00:59]}  d4 {[%clk 0:01:52]} 24. Ng3 {[%clk 0:00:47]}  Rxc2 {[%clk 0:01:40]} 25. Qxc2 {[%clk 0:00:43]}  dxe3 {[%clk 0:01:41]} 26. fxe3 {[%clk 0:00:43]}  Qxe3+ {[%clk 0:01:15]} 27. Bf2 {[%clk 0:00:43]}  Qf4 {[%clk 0:01:16]} 28. Rd1 {[%clk 0:00:36]}  Qxb4 {[%clk 0:01:11]} 29. Rb1 {[%clk 0:00:32]}  Qf4 {[%clk 0:00:58]} 30. Bxb6 {[%clk 0:00:26]}  Rc8 {[%clk 0:00:56]} 31. Qb2 {[%clk 0:00:12]}  Be4 {[%clk 0:00:47]} 32. Rf1 {[%clk 0:00:11]}  Qh4 {[%clk 0:00:40]} 33. Qd4 {[%clk 0:00:09]}  Bxg3 {[%clk 0:00:28]} 34. hxg3 {[%clk 0:00:09]}  Qg4 {[%clk 0:00:28]} 35. Qd7 {[%clk 0:00:09]}  Rc2 {[%clk 0:00:23]} 36. Qxf7+ {[%clk 0:00:09]}  Kh7 {[%clk 0:00:23]} 37. Bf2 {[%clk 0:00:07]}  Rd2 {[%clk 0:00:14]} 38. Qf4 {[%clk 0:00:06]}  Qxf4 {[%clk 0:00:14]} 39. gxf4 {[%clk 0:00:07]}  Ra2 {[%clk 0:00:14]} 40. Re1 {[%clk 0:00:06]}  Bd5 {[%clk 0:00:14]} 41. g4 {[%clk 0:00:03]}  Rxa4 {[%clk 0:00:14]} 42. Be3 {[%clk 0:00:03]}  Re4 {[%clk 0:00:14]} 43. Kf2 {[%clk 0:00:03]}  a5 {[%clk 0:00:14]} 44. Ra1 {[%clk 0:00:03]}  a4 {[%clk 0:00:14]} 45. Ke2 {[%clk 0:00:01]}  g5 {[%clk 0:00:11]} 46. Kd2 {[%clk 0:00:02]}  gxf4 {[%clk 0:00:11]} 47. Bc5 {[%clk 0:00:02]}  f3 {[%clk 0:00:11]} 48. Be3 {[%clk 0:00:02]}  Rxg4 {[%clk 0:00:12]} 49. Bf2 {[%clk 0:00:02]}  Kg6 {[%clk 0:00:12]} 50. Ke3 {[%clk 0:00:03]}  Kf5 {[%clk 0:00:12]} 51. Kd3 {[%clk 0:00:03]}  Re4 {[%clk 0:00:12]} 52. Be3 {[%clk 0:00:04]}  Rh4 {[%clk 0:00:10]} 53. Ra3 {[%clk 0:00:02]}  e5 {[%clk 0:00:10]} 54. Kd2 {[%clk 0:00:02]}  Rb4 {[%clk 0:00:10]} 55. Bf2 {[%clk 0:00:01]}  Rb2+ {[%clk 0:00:10]} 56. Ke1 {[%clk 0:00:02]}  Re2+ {[%clk 0:00:10]} 57. Kf1 {[%clk 0:00:02]}  e4 {[%clk 0:00:07]} 58. Rxa4 {[%clk 0:00:02]}  e3 {[%clk 0:00:07]} 59. Bg3 {[%clk 0:00:02]}  Rc2 {[%clk 0:00:05]} 60. Rf4+ {[%clk 0:00:02]}  Kg5 {[%clk 0:00:06]} 0-1


[Site "https://www.chess.com"]

[Event "Titled Tuesday Blitz March 08 Early 2022"]
[White "Lima, Kleyton Alcantara"]
[Black "Maksimovic, Bojan"]
[WhiteFideId "22718397"]
[BlackFideId "14408120"]
[WhiteElo "1951"]
[BlackElo "2448"]
[Result "0-1"]
[Round "03"]
[TimeControl "180+1"]
[Date "2022.03.08"]
[WhiteClock "0:00:03"]
[BlackClock "0:00:04"]

1. e4 {[%clk 0:02:52]}  c5 {[%clk 0:03:00]} 2. Nf3 {[%clk 0:02:51]}  Nc6 {[%clk 0:03:00]} 3. d4 {[%clk 0:02:52]}  cxd4 {[%clk 0:03:01]} 4. Nxd4 {[%clk 0:02:53]}  Nf6 {[%clk 0:03:02]} 5. Nc3 {[%clk 0:02:53]}  e5 {[%clk 0:03:03]} 6. Ndb5 {[%clk 0:02:53]}  h6 {[%clk 0:03:04]} 7. Nd6+ {[%clk 0:02:52]}  Bxd6 {[%clk 0:03:03]} 8. Qxd6 {[%clk 0:02:53]}  Qe7 {[%clk 0:03:04]} 9. Qd1 {[%clk 0:02:47]}  d6 {[%clk 0:03:04]} 10. Bc4 {[%clk 0:02:38]}  O-O {[%clk 0:02:55]} 11. O-O {[%clk 0:02:38]}  Be6 {[%clk 0:02:54]} 12. Nd5 {[%clk 0:02:36]}  Bxd5 {[%clk 0:02:54]} 13. exd5 {[%clk 0:02:27]}  Nb4 {[%clk 0:02:32]} 14. c3 {[%clk 0:02:25]}  Rfc8 {[%clk 0:02:24]} 15. Bb3 {[%clk 0:02:23]}  Na6 {[%clk 0:02:21]} 16. Be3 {[%clk 0:02:20]}  Nc5 {[%clk 0:02:17]} 17. Bc2 {[%clk 0:02:19]}  a5 {[%clk 0:02:13]} 18. Kh1 {[%clk 0:02:15]}  b5 {[%clk 0:02:13]} 19. f4 {[%clk 0:02:08]}  exf4 {[%clk 0:01:07]} 20. Bxf4 {[%clk 0:02:09]}  Re8 {[%clk 0:00:56]} 21. Qf3 {[%clk 0:02:01]}  Nfe4 {[%clk 0:00:31]} 22. Rae1 {[%clk 0:01:52]}  f5 {[%clk 0:00:32]} 23. Bg3 {[%clk 0:01:41]}  Rf8 {[%clk 0:00:28]} 24. b4 {[%clk 0:01:32]}  axb4 {[%clk 0:00:27]} 25. cxb4 {[%clk 0:01:33]}  Nd7 {[%clk 0:00:17]} 26. Re2 {[%clk 0:01:16]}  Rxa2 {[%clk 0:00:10]} 27. Rfe1 {[%clk 0:01:09]}  Ne5 {[%clk 0:00:10]} 28. Bxe5 {[%clk 0:01:03]}  Qxe5 {[%clk 0:00:09]} 29. g3 {[%clk 0:00:42]}  Ra1 {[%clk 0:00:09]} 30. Kg2 {[%clk 0:00:35]}  Rxe1 {[%clk 0:00:08]} 31. Rxe1 {[%clk 0:00:36]}  Re8 {[%clk 0:00:04]} 32. Re2 {[%clk 0:00:26]}  Kh8 {[%clk 0:00:03]} 33. Qh5 {[%clk 0:00:23]}  Re7 {[%clk 0:00:02]} 34. Qg6 {[%clk 0:00:17]}  Qxd5 {[%clk 0:00:02]} 35. Kh3 {[%clk 0:00:13]}  Qe6 {[%clk 0:00:02]} 36. Qxe6 {[%clk 0:00:12]}  Rxe6 {[%clk 0:00:03]} 37. Kg2 {[%clk 0:00:09]}  Kg8 {[%clk 0:00:04]} 38. Re3 {[%clk 0:00:09]}  Kf7 {[%clk 0:00:04]} 39. Bb3 {[%clk 0:00:09]}  Kf6 {[%clk 0:00:02]} 40. Bxe6 {[%clk 0:00:09]}  Kxe6 {[%clk 0:00:03]} 41. Ra3 {[%clk 0:00:09]}  Ke5 {[%clk 0:00:01]} 42. Ra7 {[%clk 0:00:09]}  g5 {[%clk 0:00:02]} 43. Rb7 {[%clk 0:00:09]}  Nc3 {[%clk 0:00:02]} 44. Rc7 {[%clk 0:00:09]}  Nd5 {[%clk 0:00:02]} 45. Rb7 {[%clk 0:00:09]}  Nxb4 {[%clk 0:00:03]} 46. Rxb5+ {[%clk 0:00:09]}  Nd5 {[%clk 0:00:03]} 47. Rb8 {[%clk 0:00:09]}  Nf6 {[%clk 0:00:03]} 48. Rh8 {[%clk 0:00:09]}  h5 {[%clk 0:00:03]} 49. Rg8 {[%clk 0:00:08]}  g4 {[%clk 0:00:04]} 50. Ra8 {[%clk 0:00:08]}  d5 {[%clk 0:00:04]} 51. Kf2 {[%clk 0:00:08]}  f4 {[%clk 0:00:04]} 52. gxf4+ {[%clk 0:00:04]}  Kxf4 {[%clk 0:00:05]} 53. Rf8 {[%clk 0:00:04]}  Kf5 {[%clk 0:00:04]} 54. Ke3 {[%clk 0:00:02]}  Ke5 {[%clk 0:00:05]} 55. Kd3 {[%clk 0:00:02]}  h4 {[%clk 0:00:04]} 56. Ra8 {[%clk 0:00:03]}  h3 {[%clk 0:00:04]} 57. Rh8 {[%clk 0:00:02]}  Kf4 {[%clk 0:00:03]} 58. Rf8 {[%clk 0:00:02]}  Ke5 {[%clk 0:00:04]} 59. Rh8 {[%clk 0:00:03]}  Kf5 {[%clk 0:00:04]} 60. Rf8 {[%clk 0:00:03]}  Kg5 {[%clk 0:00:04]} 61. Rh8 {[%clk 0:00:03]}  Nh5 {[%clk 0:00:04]} 62. Rg8+ {[%clk 0:00:02]}  Kf4 {[%clk 0:00:02]} 63. Kd4 {[%clk 0:00:03]}  Kf3 {[%clk 0:00:03]} 64. Rf8+ {[%clk 0:00:03]}  Kg2 {[%clk 0:00:02]} 65. Rg8 {[%clk 0:00:04]}  g3 {[%clk 0:00:02]} 66. hxg3 {[%clk 0:00:04]}  h2 {[%clk 0:00:03]} 67. Kxd5 {[%clk 0:00:03]}  h1=Q {[%clk 0:00:03]} 68. Ke6 {[%clk 0:00:04]}  Nxg3 {[%clk 0:00:03]} 69. Kf6 {[%clk 0:00:04]}  Qh6+ {[%clk 0:00:04]} 70. Rg6 {[%clk 0:00:03]}  Qf4+ {[%clk 0:00:04]} 71. Kg7 {[%clk 0:00:04]}  Qe5+ {[%clk 0:00:04]} 72. Kh7 {[%clk 0:00:04]}  Qf5 {[%clk 0:00:04]} 73. Kh8 {[%clk 0:00:04]}  Qf4 {[%clk 0:00:04]} 74. Rg7 {[%clk 0:00:03]}  Kf3 {[%clk 0:00:04]} 75. Rg6 {[%clk 0:00:03]}  Nf5 {[%clk 0:00:04]} 76. Rg8 {[%clk 0:00:03]}  Qh4# {[%clk 0:00:04]} 0-1


[Site "https://www.chess.com"]

[Event "Titled Tuesday Blitz March 08 Early 2022"]
[White "Maevsky, Nikolay"]
[Black "Zierk, Steven"]
[WhiteFideId "4198220"]
[BlackFideId "2034255"]
[WhiteElo "2126"]
[BlackElo "2494"]
[Result "0-1"]
[Round "03"]
[TimeControl "180+1"]
[Date "2022.03.08"]
[WhiteClock "0:00:02"]
[BlackClock "0:00:18"]

1. d4 {[%clk 0:02:56]}  d5 {[%clk 0:02:58]} 2. Nf3 {[%clk 0:02:56]}  Nf6 {[%clk 0:02:58]} 3. e3 {[%clk 0:02:56]}  c5 {[%clk 0:02:57]} 4. c3 {[%clk 0:02:56]}  e6 {[%clk 0:02:57]} 5. Nbd2 {[%clk 0:02:53]}  Nbd7 {[%clk 0:02:56]} 6. Bd3 {[%clk 0:02:53]}  Bd6 {[%clk 0:02:56]} 7. O-O {[%clk 0:02:53]}  O-O {[%clk 0:02:55]} 8. e4 {[%clk 0:02:53]}  dxe4 {[%clk 0:02:55]} 9. Nxe4 {[%clk 0:02:53]}  Nxe4 {[%clk 0:02:55]} 10. Bxe4 {[%clk 0:02:53]}  Nf6 {[%clk 0:02:55]} 11. Bc2 {[%clk 0:02:47]}  b6 {[%clk 0:02:45]} 12. Bg5 {[%clk 0:02:45]}  Bb7 {[%clk 0:02:43]} 13. Re1 {[%clk 0:02:43]}  Be7 {[%clk 0:02:31]} 14. Qd3 {[%clk 0:02:37]}  c4 {[%clk 0:02:12]} 15. Qxc4 {[%clk 0:02:26]}  Bxf3 {[%clk 0:02:12]} 16. gxf3 {[%clk 0:02:26]}  Nd5 {[%clk 0:02:11]} 17. Qd3 {[%clk 0:02:16]}  g6 {[%clk 0:02:09]} 18. Be3 {[%clk 0:02:12]}  Bd6 {[%clk 0:02:01]} 19. Qe4 {[%clk 0:02:12]}  Qf6 {[%clk 0:02:01]} 20. Bh6 {[%clk 0:01:59]}  Rfc8 {[%clk 0:01:52]} 21. Qg4 {[%clk 0:01:56]}  b5 {[%clk 0:01:39]} 22. a3 {[%clk 0:01:56]}  Bf4 {[%clk 0:01:20]} 23. Bxf4 {[%clk 0:01:50]}  Nxf4 {[%clk 0:01:21]} 24. Re4 {[%clk 0:01:42]}  g5 {[%clk 0:01:16]} 25. Kh1 {[%clk 0:01:28]}  h5 {[%clk 0:01:11]} 26. Qg3 {[%clk 0:01:28]}  h4 {[%clk 0:01:08]} 27. Qg4 {[%clk 0:01:22]}  Kh8 {[%clk 0:00:52]} 28. Re5 {[%clk 0:01:16]}  Rg8 {[%clk 0:00:50]} 29. Rxb5 {[%clk 0:01:06]}  Rab8 {[%clk 0:00:50]} 30. a4 {[%clk 0:01:02]}  a6 {[%clk 0:00:49]} 31. Rxb8 {[%clk 0:00:55]}  Rxb8 {[%clk 0:00:50]} 32. Rb1 {[%clk 0:00:35]}  Qd8 {[%clk 0:00:41]} 33. b4 {[%clk 0:00:21]}  Rc8 {[%clk 0:00:37]} 34. Be4 {[%clk 0:00:10]}  f5 {[%clk 0:00:31]} 35. Bxf5 {[%clk 0:00:10]}  exf5 {[%clk 0:00:32]} 36. Qxf5 {[%clk 0:00:11]}  Rxc3 {[%clk 0:00:31]} 37. Rg1 {[%clk 0:00:10]}  Qd5 {[%clk 0:00:19]} 38. Qf8+ {[%clk 0:00:04]}  Kh7 {[%clk 0:00:18]} 39. Qe7+ {[%clk 0:00:03]}  Kh6 {[%clk 0:00:18]} 40. Qf8+ {[%clk 0:00:02]}  Kg6 {[%clk 0:00:19]} 41. Qe8+ {[%clk 0:00:02]}  Kf6 {[%clk 0:00:18]} 0-1


[Site "https://www.chess.com"]